Workbook

Sheet LISEZ-MOI
A1: Ce classeur contient 4 feuilles
A3: 1 / La feuille lisez_-moi vous indique comment utiliser ce classeur
A5: 2 / La feuille " A RENSEIGNER" vous demande de remplir les cases bleues uniquement mais complètement
B7: la date
B8: le lieu
B9: le nom du Directeur de jeu
B10: le numéro de la poule que vous trouverez en consultant la convocation
B12: POULE DE 3
B13: indiquez le nom des joueurs
B14: ou
B15: POULE DE 2
B16: indiquez le nom des joueurs
B18: cette action remplie la feuille de poule
A20: 3 : la feuille POULE DE 3 se remplit de la façon suivante
B22: remplir les cases bleutées
B23: c' est tout.
B24: la feuille est protégée
B25: les calculs se font automatiquement
A27: 4: la feuille RESULTATS POULE DE 3 est accessible par le bouton rouge
A29: 5 : la feuille POULE DE 2 se remplit de la façon suivante
B31: remplir les cases bleutées
B32: c' est tout.
B33: la feuille est protégée
B34: les calculs se font automatiquement
A36: 6: la feuille RESULTATS POULE DE 2 est accessible par le bouton rouge
A38: 7: En cas de forfait dans une poule de trois joueurs, utilisez la feuille de match de poule de deux joueurs
A41: NE PAS OUBLIER QUE DEUX JOUEURS DU MÊME CLUB SE RENCONTRENT AU PREMIER MATCH

Sheet A RENSEIGNER
A1: VERSION 10/2021
A5: CDBVM SAISON 2021- 2022
B11: DATE DE LA COMPETITION | C11: 2022-03-13 | D11: =IF(COUNTA(C11:C17)<7,"RENSEIGNEZ TOUS LES CHAMPS ! MERCI","") -> RENSEIGNEZ TOUS LES CHAMPS ! MERCI
B12: LIEU | C12: ABMA
B13: DIRECTEUR DE JEU | F13: Ce fichier rempli doit être envoyé dès la fin de la compétition à la Commission Sportive à l'adresse de messagerie: csdistrict9394@outlook.fr
B14: TOURNOI N° | C14: FINALE
B15: POULE N° | C15: 1
B16: MODE DE JEU | C16: LIBRE | E16: =VLOOKUP(C16,ModeJeu_col,2,0) -> 1
B17: CATEGORIE | C17: N3
B20: CE FICHIER NE SERT QU' A UNE SEULE POULE DE 3 JOUEURS OU DE 2 JOUEURS
B22: SI C' EST UNE POULE DE 3 JOUEURS, CLIQUEZ ICI
B25: REMPLIR LES NOMS DES JOUEURS AVEC LA LISTE DEROULANTE
B27: NOM DES JOUEURS | C27: CATEGORIE | D27: CLUB
B28: JARRETY Didier | C28: =IF(ISBLANK(B28),"",INDEX(tab_corresp_ID_cate,E28,$E$16)) -> N3 | D28: =IF(ISBLANK(B28),"",VLOOKUP(B28,BD_JOUEURS_CATEGORIES,2,0)) -> LIVRY | E28: =VLOOKUP(B28,BD_JOUEURS_CATEGORIES,3,0) -> 40
B29: SIMON Claude | C29: =IF(ISBLANK(B29),"",INDEX(tab_corresp_ID_cate,E29,$E$16)) -> N3 | D29: =IF(ISBLANK(B29),"",VLOOKUP(B29,BD_JOUEURS_CATEGORIES,2,0)) -> ABASM | E29: =VLOOKUP(B29,BD_JOUEURS_CATEGORIES,3,0) -> 75
B30: RIEGEL Serge | C30: =IF(ISBLANK(B30),"",INDEX(tab_corresp_ID_cate,E30,$E$16)) -> N3 | D30: =IF(ISBLANK(B30),"",VLOOKUP(B30,BD_JOUEURS_CATEGORIES,2,0)) -> ABASM | E30: =VLOOKUP(B30,BD_JOUEURS_CATEGORIES,3,0) -> 72
B32: =IF(AND(B29<>B28,B28<>B30,B29<>B30,B28<>"",B29<>"",B30<>""),"","Vous n' avez pas encore inscrit les trois joueurs ou vous avez inscrit deux mêmes joueurs") -> 
B33: =IF(COUNTA(B28:B30)=0,"",IF(COUNTA(B28:B30)=3,"",IF(COUNTA(B28:B30)=1,"manque 2 joueurs",IF(COUNTA(B28:B30)=2,"manque 1 joueur")))) -> 
B35: SI C' EST UNE POULE DE 2 JOUEURS, CLIQUEZ ICI
B38: REMPLIR LES NOMS DES JOUEURS AVEC LA LISTE DEROULANTE
B40: NOM DES JOUEURS | C40: CATEGORIE | D40: CLUB
C41: =IF(ISBLANK(B41),"",INDEX(tab_corresp_ID_cate,E41,$E$16)) ->  | D41: =IF(ISBLANK(B41),"",VLOOKUP(B41,BD_JOUEURS_CATEGORIES,2,0)) ->  | E41: =VLOOKUP(B41,BD_JOUEURS_CATEGORIES,3,0) -> 
C42: =IF(ISBLANK(B42),"",INDEX(tab_corresp_ID_cate,E42,$E$16)) ->  | D42: =IF(ISBLANK(B42),"",VLOOKUP(B42,BD_JOUEURS_CATEGORIES,2,0)) ->  | E42: =VLOOKUP(B42,BD_JOUEURS_CATEGORIES,3,0) -> 
B44: =IF(AND(B41<>B42,B41<>"",B42<>""),"","Vous n' avez pas encore inscrit les deux joueurs ou vous avez inscrit les deux mêmes") -> Vous n' avez pas encore inscrit les deux joueurs ou vous avez inscrit les deux mêmes
B45: =IF(COUNTA(B41:B42)=0,"",IF(COUNTA(B41:B42)=2,"",IF(COUNTA(B41:B42)=1,"manque 1 joueur"))) -> 
B163: 1
B164: 2
B165: 3
B166: 4
B167: 5
B168: 6
B169: 7
B170: 8
B171: 9
B172: 10
B173: 11
B174: 12
B175: 13
B176: 14
B177: 15
B183: LIBRE | C183: 1
B184: BANDE | C184: 2
B185: 3 BANDES | C185: 3
B186: CADRE | C186: 4

Sheet POULE DE 3
C2: CDBVM SAISON 2021- 2022
C4: ='A RENSEIGNER'!B11 -> DATE DE LA COMPETITION | D4: =IF(ISBLANK('A RENSEIGNER'!C11),"",'A RENSEIGNER'!C11) -> 2022-03-13
C5: ='A RENSEIGNER'!B12 -> LIEU | D5: =IF(ISBLANK('A RENSEIGNER'!C12),"",'A RENSEIGNER'!C12) -> ABMA | F5: FEUILLE DE MATCH POULE DE 3 JOUEURS
C6: ='A RENSEIGNER'!B13 -> DIRECTEUR DE JEU | D6: =IF(ISBLANK('A RENSEIGNER'!C13),"",'A RENSEIGNER'!C13) -> 
C7: ='A RENSEIGNER'!B14 -> TOURNOI N° | D7: =IF(ISBLANK('A RENSEIGNER'!C14),"",'A RENSEIGNER'!C14) -> FINALE
C8: ='A RENSEIGNER'!B15 -> POULE N° | D8: =IF(ISBLANK('A RENSEIGNER'!C15),"",'A RENSEIGNER'!C15) -> 1
C9: ='A RENSEIGNER'!B16 -> MODE DE JEU | D9: =IF(ISBLANK('A RENSEIGNER'!C16),"",'A RENSEIGNER'!C16) -> LIBRE
C12: JOUEURS | D12: CATEGORIE
C14: =IF(ISBLANK('A RENSEIGNER'!B28),"",'A RENSEIGNER'!B28) -> JARRETY Didier | D14: ='A RENSEIGNER'!C28 -> N3 | E14: =VLOOKUP(D14,$P$34:$Q$38,2,0) -> 200
C15: =IF(ISBLANK('A RENSEIGNER'!B29),"",'A RENSEIGNER'!B29) -> SIMON Claude | D15: ='A RENSEIGNER'!C29 -> N3 | E15: =VLOOKUP(D15,$P$34:$Q$38,2,0) -> 200
C16: =IF(ISBLANK('A RENSEIGNER'!B30),"",'A RENSEIGNER'!B30) -> RIEGEL Serge | D16: ='A RENSEIGNER'!C30 -> N3 | E16: =VLOOKUP(D16,$P$34:$Q$38,2,0) -> 200
C19: =IF(ISBLANK('A RENSEIGNER'!C16),"",IF('A RENSEIGNER'!C16="3 BANDES","LA DISTANCE DE LA POULE EST DE"&" "&IF(AND(D14=D15=D16),VLOOKUP(D14,P34:Q38,2,0),MAX(E14:E16))&" "&"POINTS EN 50 REPRISES","LA DISTANCE DE LA POULE EST DE"&" "&IF(AND(D14=D15=D16),VLOOKUP(D14,P34:Q38,2,0),MAX(E14:E16))&" "&"POINTS SANS LIMITATION DE REPRISES")) -> LA DISTANCE DE LA POULE EST DE 200 POINTS SANS LIMITATION DE REPRISES
C21: SAISIE DES MATCHS
C24: MATCH 1 | P24: RESULTATS
C26: NOM | D26: CATEGORIE | E26: POINTS | F26: REPRISES | G26: SERIE | I26: MOY PART | J26: POINTS MATCH | K26: GAIN CATEG | L26: GAIN MATCH | M26: moy part validée | P26: NOM | Q26: CATEGORIE | R26: TOTAL POINTS | S26: TOTAL REPRISES | T26: MOYENNE GENERALE | U26: MOYENNE PARTICULIERE | V26: MEILLEURE SERIE | W26: POINTS DE MATCHS | X26: calcul du rang | Y26: RANG | Z26: POINTS CLASSEMENT | AA26: BONUS moyenne match 1 | AB26: BONUS moyenne match 2 | AC26: Bonus catégorie Match 1 | AD26: Bonus catégorie Match 2 | AE26: Bonus gain match 1 | AF26: Bonus gain match 2 | AG26: TOTAL POINTS BONUS | AH26: TOTAL GENERAL
B27: =VLOOKUP(D27,CATE_COR,2,0) -> 5 | D27: ='A RENSEIGNER'!C28 -> N3 | P27: =IF(ISBLANK('A RENSEIGNER'!B28),"",'A RENSEIGNER'!B28) -> JARRETY Didier | Q27: ='A RENSEIGNER'!C28 -> N3 | R27: =IF(ISBLANK('A RENSEIGNER'!B28),"",E36+E44) -> 400 | S27: =IF(ISBLANK('A RENSEIGNER'!B28),"",F36+F44) -> 60 | T27: =IF(ISBLANK('A RENSEIGNER'!B28),"",R27/S27) -> 6.666666667 | U27: =IF(ISBLANK('A RENSEIGNER'!B28),"",MAX(M36,M44)) -> 8.333333333 | V27: =IF(ISBLANK('A RENSEIGNER'!B28),"",MAX(G36,G44)) -> 32 | W27: =IF(ISBLANK('A RENSEIGNER'!B28),"",J36+J44) -> 4 | X27: =IF(ISBLANK('A RENSEIGNER'!B28),"",W27*1000000000+T27*1000000+U27*10000+V27) -> 4006750032 | Y27: =IF(ISBLANK('A RENSEIGNER'!B28),"",RANK(X27,$X$27:$X$29,0)) -> 1 | Z27: =IF(ISBLANK('A RENSEIGNER'!B28),"",IF(Y27=1,8,IF(Y27=2,5,IF(Y27=3,3)))) -> 8 | AA27: =IF(J36=0,0,IF(ISBLANK('A RENSEIGNER'!B28),"",IF(I36>VLOOKUP(D36,$T$34:$V$38,3,0),2,IF(I36<VLOOKUP(D36,$T$34:$V$38,2,0),0,1)))) -> 0 | AB27: =IF(J44=0,0,IF(ISBLANK('A RENSEIGNER'!B28),"",IF(I44>VLOOKUP(D44,$T$34:$V$38,3,0),2,IF(I44<VLOOKUP(D44,$T$34:$V$38,2,0),0,1)))) -> 1 | AC27: =IF(ISBLANK('A RENSEIGNER'!B28),"",K36) -> 0 | AD27: =IF(ISBLANK('A RENSEIGNER'!B28),"",K44) -> 0 | AE27: =IF(ISBLANK('A RENSEIGNER'!B28),"",L36) -> 0 | AF27: =IF(ISBLANK('A RENSEIGNER'!B28),"",L44) -> 0 | AG27: =IF(ISBLANK('A RENSEIGNER'!B28),"",SUM(AA27:AF27)) -> 1 | AH27: =IF(ISBLANK('A RENSEIGNER'!B28),"",SUM(Z27,AG27)) -> 9
B28: =VLOOKUP(D28,CATE_COR,2,0) -> 5 | C28: =IF(ISBLANK('A RENSEIGNER'!B29),"",'A RENSEIGNER'!B29) -> SIMON Claude | D28: =IF(ISBLANK('A RENSEIGNER'!C29),"",'A RENSEIGNER'!C29) -> N3 | E28: 141 | F28: 28 | G28: 18 | H28: =IF(G28<I28,1,0) -> 0 | I28: =IF(OR(E28="",F28=""),"",E28/F28) -> 5.035714286 | J28: =IF(E28="","",IF(E28>E29,2,IF(E28=E29,1,IF(E28<E29,0)))) -> 0 | K28: =IF(B28<B29,1,0) -> 0 | L28: =IF(K28=0,0,IF(J28=2,3,IF(J28=1,2,IF(J28=0,1)))) -> 0 | M28: =IF(J28=0,0,I28) -> 0 | P28: =IF(ISBLANK('A RENSEIGNER'!B29),"",'A RENSEIGNER'!B29) -> SIMON Claude | Q28: ='A RENSEIGNER'!C29 -> N3 | R28: =IF(ISBLANK('A RENSEIGNER'!B29),"",E28+E37) -> 270 | S28: =IF(ISBLANK('A RENSEIGNER'!B29),"",F28+F37) -> 64 | T28: =IF(ISBLANK('A RENSEIGNER'!B29),"",R28/S28) -> 4.21875 | U28: =IF(ISBLANK('A RENSEIGNER'!B29),"",MAX(M28,M37)) -> 0 | V28: =IF(ISBLANK('A RENSEIGNER'!B29),"",MAX(G28,G37)) -> 21 | W28: =IF(ISBLANK('A RENSEIGNER'!B29),"",J28+J37) -> 0 | X28: =IF(ISBLANK('A RENSEIGNER'!B29),"",W28*1000000000+T28*1000000+U28*10000+V28) -> 4218771 | Y28: =IF(ISBLANK('A RENSEIGNER'!B29),"",RANK(X28,$X$27:$X$29,0)) -> 3 | Z28: =IF(ISBLANK('A RENSEIGNER'!B29),"",IF(Y28=1,8,IF(Y28=2,5,IF(Y28=3,3)))) -> 3 | AA28: =IF(J28=0,0,IF(ISBLANK('A RENSEIGNER'!B29),"",IF(I28>VLOOKUP(D28,$T$34:$V$38,3,0),2,IF(I28<VLOOKUP(D28,$T$34:$V$38,2,0),0,1)))) -> 0 | AB28: =IF(J37=0,0,IF(ISBLANK('A RENSEIGNER'!B29),"",IF(I37>VLOOKUP(D37,$T$34:$V$38,3,0),2,IF(I37<VLOOKUP(D37,$T$34:$V$38,2,0),0,1)))) -> 0 | AC28: =IF(ISBLANK('A RENSEIGNER'!B29),"",K28) -> 0 | AD28: =IF(ISBLANK('A RENSEIGNER'!B29),"",K37) -> 0 | AE28: =IF(ISBLANK('A RENSEIGNER'!B29),"",L28) -> 0 | AF28: =IF(ISBLANK('A RENSEIGNER'!B29),"",L37) -> 0 | AG28: =IF(ISBLANK('A RENSEIGNER'!B29),"",SUM(AA28:AF28)) -> 0 | AH28: =IF(ISBLANK('A RENSEIGNER'!B29),"",SUM(Z28,AG28)) -> 3
B29: =VLOOKUP(D29,CATE_COR,2,0) -> 5 | C29: =IF(ISBLANK('A RENSEIGNER'!B30),"",'A RENSEIGNER'!B30) -> RIEGEL Serge | D29: =IF(ISBLANK('A RENSEIGNER'!C30),"",'A RENSEIGNER'!C30) -> N3 | E29: 200 | F29: =IF(ISBLANK(F28),"",F28) -> 28 | G29: 30 | H29: =IF(G29<I29,1,0) -> 0 | I29: =IF(OR(E29="",F29=""),"",E29/F29) -> 7.142857143 | J29: =IF(E29="","",IF(E29>E28,2,IF(E29=E28,1,IF(E29<E28,0)))) -> 2 | K29: =IF(B29<B28,1,0) -> 0 | L29: =IF(K29=0,0,IF(J29=2,3,IF(J29=1,2,IF(J29=0,1)))) -> 0 | M29: =IF(J29=0,0,I29) -> 7.142857143 | P29: =IF(ISBLANK('A RENSEIGNER'!B30),"",'A RENSEIGNER'!B30) -> RIEGEL Serge | Q29: ='A RENSEIGNER'!C30 -> N3 | R29: =IF(ISBLANK('A RENSEIGNER'!B30),"",E29+E46) -> 261 | S29: =IF(ISBLANK('A RENSEIGNER'!B30),"",F29+F46) -> 52 | T29: =IF(ISBLANK('A RENSEIGNER'!B30),"",R29/S29) -> 5.019230769 | U29: =IF(ISBLANK('A RENSEIGNER'!B30),"",MAX(M29,M46)) -> 7.142857143 | V29: =IF(ISBLANK('A RENSEIGNER'!B30),"",MAX(G29,G46)) -> 30 | W29: =IF(ISBLANK('A RENSEIGNER'!B30),"",J29+J46) -> 2 | X29: =IF(ISBLANK('A RENSEIGNER'!B30),"",W29*1000000000+T29*1000000+U29*10000+V29) -> 2005090689 | Y29: =IF(ISBLANK('A RENSEIGNER'!B30),"",RANK(X29,$X$27:$X$29,0)) -> 2 | Z29: =IF(ISBLANK('A RENSEIGNER'!B30),"",IF(Y29=1,8,IF(Y29=2,5,IF(Y29=3,3)))) -> 5 | AA29: =IF(J29=0,0,IF(ISBLANK('A RENSEIGNER'!B30),"",IF(I29>VLOOKUP(D29,$T$34:$V$38,3,0),2,IF(I29<VLOOKUP(D29,$T$34:$V$38,2,0),0,1)))) -> 1 | AB29: =IF(J46=0,0,IF(ISBLANK('A RENSEIGNER'!B30),"",IF(I46>VLOOKUP(D46,$T$34:$V$38,3,0),2,IF(I46<VLOOKUP(D46,$T$34:$V$38,2,0),0,1)))) -> 0 | AC29: =IF(ISBLANK('A RENSEIGNER'!B30),"",K46) -> 0 | AD29: =IF(ISBLANK('A RENSEIGNER'!B30),"",K46) -> 0 | AE29: =IF(ISBLANK('A RENSEIGNER'!B30),"",L29) -> 0 | AF29: =IF(ISBLANK('A RENSEIGNER'!B30),"",L46) -> 0 | AG29: =IF(ISBLANK('A RENSEIGNER'!B30),"",SUM(AA29:AF29)) -> 1 | AH29: =IF(ISBLANK('A RENSEIGNER'!B30),"",SUM(Z29,AG29)) -> 6
C33: MATCH 2 | P33: TABLEAU DES DISTANCES | T33: MOYENNE DES CATEGORIES
P34: R4 | Q34: =VLOOKUP('A RENSEIGNER'!$C$16&'POULE DE 3 '!P34,tabdistance,4,0) -> 50 | R34: =VLOOKUP('A RENSEIGNER'!$C$16&'POULE DE 3 '!P34,tabdistance,5,0) -> PC | T34: R4 | U34: =VLOOKUP('A RENSEIGNER'!$C$16&'POULE DE 3 '!T34,tablemoy,4,0) -> 0 | V34: =VLOOKUP('A RENSEIGNER'!$C$16&'POULE DE 3 '!T34,tablemoy,5,0) -> 1.1999999
C35: NOM | D35: CATEGORIE | E35: POINTS | F35: REPRISES | G35: SERIE | I35: MOY PART | J35: POINTS MATCH | K35: GAIN CATEG | L35: GAIN MATCH | M35: moy part validée | P35: R3 | Q35: =VLOOKUP('A RENSEIGNER'!$C$16&'POULE DE 3 '!P35,tabdistance,4,0) -> 70 | R35: =VLOOKUP('A RENSEIGNER'!$C$16&'POULE DE 3 '!P35,tabdistance,5,0) -> PC | T35: R3 | U35: =VLOOKUP('A RENSEIGNER'!$C$16&'POULE DE 3 '!T35,tablemoy,4,0) -> 1.2 | V35: =VLOOKUP('A RENSEIGNER'!$C$16&'POULE DE 3 '!T35,tablemoy,5,0) -> 2.299999
B36: =VLOOKUP(D36,CATE_COR,2,0) -> 5 | C36: =IF(ISBLANK('A RENSEIGNER'!B28),"",'A RENSEIGNER'!B28) -> JARRETY Didier | D36: =IF(ISBLANK('A RENSEIGNER'!C28),"",'A RENSEIGNER'!C28) -> N3 | E36: 200 | F36: 36 | G36: 25 | H36: =IF(G36<I36,1,0) -> 0 | I36: =IF(OR(E36="",F36=""),"",E36/F36) -> 5.555555556 | J36: =IF(E36="","",IF(E36>E37,2,IF(E36=E37,1,IF(E36<E37,0)))) -> 2 | K36: =IF(B36<B37,1,0) -> 0 | L36: =IF(K36=0,0,IF(J36=2,3,IF(J36=1,2,IF(J36=0,1)))) -> 0 | M36: =IF(J36=0,0,I36) -> 5.555555556 | P36: R2 | Q36: =VLOOKUP('A RENSEIGNER'!$C$16&'POULE DE 3 '!P36,tabdistance,4,0) -> 100 | R36: =VLOOKUP('A RENSEIGNER'!$C$16&'POULE DE 3 '!P36,tabdistance,5,0) -> PC | T36: R2 | U36: =VLOOKUP('A RENSEIGNER'!$C$16&'POULE DE 3 '!T36,tablemoy,4,0) -> 2.3 | V36: =VLOOKUP('A RENSEIGNER'!$C$16&'POULE DE 3 '!T36,tablemoy,5,0) -> 3.9999999
B37: =VLOOKUP(D37,CATE_COR,2,0) -> 5 | C37: =IF(ISBLANK('A RENSEIGNER'!B29),"",'A RENSEIGNER'!B29) -> SIMON Claude | D37: =IF(ISBLANK('A RENSEIGNER'!C29),"",'A RENSEIGNER'!C29) -> N3 | E37: 129 | F37: =IF(ISBLANK(F36),"",F36) -> 36 | G37: 21 | H37: =IF(G37<I37,1,0) -> 0 | I37: =IF(OR(E37="",F37=""),"",E37/F37) -> 3.583333333 | J37: =IF(E37="","",IF(E37>E36,2,IF(E37=E36,1,IF(E37<E36,0)))) -> 0 | K37: =IF(B37<B36,1,0) -> 0 | L37: =IF(K37=0,0,IF(J37=2,3,IF(J37=1,2,IF(J37=0,1)))) -> 0 | M37: =IF(J37=0,0,I37) -> 0 | P37: R1 | Q37: =VLOOKUP('A RENSEIGNER'!$C$16&'POULE DE 3 '!P37,tabdistance,4,0) -> 150 | R37: =VLOOKUP('A RENSEIGNER'!$C$16&'POULE DE 3 '!P37,tabdistance,5,0) -> PC | T37: R1 | U37: =VLOOKUP('A RENSEIGNER'!$C$16&'POULE DE 3 '!T37,tablemoy,4,0) -> 4 | V37: =VLOOKUP('A RENSEIGNER'!$C$16&'POULE DE 3 '!T37,tablemoy,5,0) -> 5.9999999
B38: =VLOOKUP(D38,CATE_COR,2,0) -> 5 | D38: ='A RENSEIGNER'!C30 -> N3 | P38: N3 | Q38: 200 | R38: =VLOOKUP('A RENSEIGNER'!$C$16&'POULE DE 3 '!P38,tabdistance,5,0) -> GC | T38: N3 | U38: =VLOOKUP('A RENSEIGNER'!$C$16&'POULE DE 3 '!T38,tablemoy,4,0) -> 6 | V38: =VLOOKUP('A RENSEIGNER'!$C$16&'POULE DE 3 '!T38,tablemoy,5,0) -> 12.4999999
C41: MATCH 3
C43: NOM | D43: CATEGORIE | E43: POINTS | F43: REPRISES | G43: SERIE | I43: MOY PART | J43: POINTS MATCH | K43: GAIN CATEG | L43: GAIN MATCH | M43: moy part validée
B44: =VLOOKUP(D44,CATE_COR,2,0) -> 5 | C44: =IF(ISBLANK('A RENSEIGNER'!B28),"",'A RENSEIGNER'!B28) -> JARRETY Didier | D44: =IF(ISBLANK('A RENSEIGNER'!C28),"",'A RENSEIGNER'!C28) -> N3 | E44: 200 | F44: 24 | G44: 32 | H44: =IF(G44<I44,1,0) -> 0 | I44: =IF(OR(E44="",F44=""),"",E44/F44) -> 8.333333333 | J44: =IF(E44="","",IF(E44>E46,2,IF(E44=E46,1,IF(E44<E46,0)))) -> 2 | K44: =IF(B44<B46,1,0) -> 0 | L44: =IF(K44=0,0,IF(J44=2,3,IF(J44=1,2,IF(J44=0,1)))) -> 0 | M44: =IF(J44=0,0,I44) -> 8.333333333
B45: =VLOOKUP(D45,CATE_COR,2,0) -> 5 | D45: ='A RENSEIGNER'!C29 -> N3
B46: =VLOOKUP(D46,CATE_COR,2,0) -> 5 | C46: =IF(ISBLANK('A RENSEIGNER'!B30),"",'A RENSEIGNER'!B30) -> RIEGEL Serge | D46: =IF(ISBLANK('A RENSEIGNER'!C30),"",'A RENSEIGNER'!C30) -> N3 | E46: 61 | F46: =IF(ISBLANK(F44),"",F44) -> 24 | G46: 14 | H46: =IF(G46<I46,1,0) -> 0 | I46: =IF(OR(E46="",F46=""),"",E46/F46) -> 2.541666667 | J46: =IF(E46="","",IF(E46>E44,2,IF(E46=E44,1,IF(E46<E44,0)))) -> 0 | K46: =IF(B46<B44,1,0) -> 0 | L46: =IF(K46=0,0,IF(J46=2,3,IF(J46=1,2,IF(J46=0,1)))) -> 0 | M46: =IF(J46=0,0,I46) -> 0
AC236: N3 | AD236: 5
AC237: R1 | AD237: 4
AC238: R2 | AD238: 3
AC239: R3 | AD239: 2
AC240: R4 | AD240: 1

Sheet RESULTATS POULE DE 3
C3: ='A RENSEIGNER'!$C$11 -> 2022-03-13
C5: ='A RENSEIGNER'!$C$12 -> ABMA
C7: ="MODE DE JEU"&" "&'A RENSEIGNER'!$C$16 -> MODE DE JEU LIBRE
C9: ="CATEGORIE"&" "&'A RENSEIGNER'!$C$17 -> CATEGORIE N3
C11: ="TOURNOI N°"&" "&'A RENSEIGNER'!$C$14 -> TOURNOI N° FINALE
C13: ="POULE n°"&" "&'A RENSEIGNER'!$C$15 -> POULE n° 1
C15: RESULTATS DE LA POULE
C17: JOUEUR categorie club | D17: =C18 -> JARRETY Didier | G17: =C22 -> SIMON Claude | J17: =C26 -> RIEGEL Serge | M17: PTS | N17: REP | P17: MG | Q17: PTS DE MATCHS | R17: RANG | S17: POINTS DE CLASSEMENT | T17: POINTS DE BONUS | U17: TOTAL POINTS
C18: =IF(ISBLANK('A RENSEIGNER'!B28),"",'A RENSEIGNER'!B28) -> JARRETY Didier | G18: =IF(ISBLANK('POULE DE 3 '!E36),"",'POULE DE 3 '!E36) -> 200 | I18: =IF(ISBLANK('POULE DE 3 '!F36),"",'POULE DE 3 '!F36) -> 36 | J18: =IF(ISBLANK('POULE DE 3 '!E44),"",'POULE DE 3 '!E44) -> 200 | L18: =IF(ISBLANK('POULE DE 3 '!F44),"",'POULE DE 3 '!F44) -> 24 | M18: =IF('POULE DE 3 '!R27=0,"",'POULE DE 3 '!R27) -> 400 | N18: =IF('POULE DE 3 '!S27=0,"",'POULE DE 3 '!S27) -> 60 | P18: =IF(ISERROR('POULE DE 3 '!T27),"",'POULE DE 3 '!T27) -> 6.666666667 | Q18: =IF(ISERROR('POULE DE 3 '!W27),"",'POULE DE 3 '!W27) -> 4 | R18: =IF(ISERROR('POULE DE 3 '!Y27),"",IF(ISBLANK('A RENSEIGNER'!B28),"",IF('POULE DE 3 '!Y27=1,'POULE DE 3 '!Y27&"er",'POULE DE 3 '!Y27&"ème"))) -> 1er | S18: =IF(ISERROR('POULE DE 3 '!Z27),"",'POULE DE 3 '!Z27) -> 8 | T18: =IF(ISBLANK(C18),"",'POULE DE 3 '!AG27) -> 1 | U18: =IF(ISERROR('POULE DE 3 '!AH27),"",'POULE DE 3 '!AH27) -> 9
C19: ='A RENSEIGNER'!C28 -> N3 | H19: ='POULE DE 3 '!J36 -> 2 | K19: ='POULE DE 3 '!J44 -> 2 | M19: MP | O19: SERIE
C20: ='A RENSEIGNER'!D28 -> LIVRY | G20: =+'POULE DE 3 '!I36 -> 5.555555556 | I20: =IF(ISBLANK('POULE DE 3 '!G36),"",'POULE DE 3 '!G36) -> 25 | J20: =+'POULE DE 3 '!I44 -> 8.333333333 | L20: =IF(ISBLANK('POULE DE 3 '!G44),"",'POULE DE 3 '!G44) -> 32 | M20: =IF('POULE DE 3 '!U27=0,"",'POULE DE 3 '!U27) -> 8.333333333 | O20: =IF('POULE DE 3 '!V27=0,"",'POULE DE 3 '!V27) -> 32
C21: JOUEUR categorie club | D21: =D17 -> JARRETY Didier | G21: =G17 -> SIMON Claude | J21: =J17 -> RIEGEL Serge | M21: PTS | N21: REP | P21: MG | Q21: PTS DE MATCHS | R21: RANG | S21: POINTS DE CLASSEMENTS | T21: POINTS DE BONUS | U21: TOTAL POINTS
C22: =IF(ISBLANK('A RENSEIGNER'!B29),"",'A RENSEIGNER'!B29) -> SIMON Claude | D22: =IF(ISBLANK('POULE DE 3 '!E37),"",'POULE DE 3 '!E37) -> 129 | F22: =IF(ISBLANK('POULE DE 3 '!F37),"",'POULE DE 3 '!F37) -> 36 | J22: =IF(ISBLANK('POULE DE 3 '!E28),"",'POULE DE 3 '!E28) -> 141 | L22: =IF(ISBLANK('POULE DE 3 '!F28),"",'POULE DE 3 '!F28) -> 28 | M22: =IF('POULE DE 3 '!R28=0,"",'POULE DE 3 '!R28) -> 270 | N22: =IF(ISERROR('POULE DE 3 '!S28),"",'POULE DE 3 '!S28) -> 64 | P22: =IF(ISERROR('POULE DE 3 '!T28),"",'POULE DE 3 '!T28) -> 4.21875 | Q22: =IF(ISERROR('POULE DE 3 '!W28),"",'POULE DE 3 '!W28) -> 0 | R22: =IF(ISERROR('POULE DE 3 '!Y28),"",IF(ISBLANK('A RENSEIGNER'!B29),"",IF('POULE DE 3 '!Y28=1,'POULE DE 3 '!Y28&"er",'POULE DE 3 '!Y28&"ème"))) -> 3ème | S22: =IF(ISERROR('POULE DE 3 '!Z28),"",'POULE DE 3 '!Z28) -> 3 | T22: =+'POULE DE 3 '!AG28 -> 0 | U22: =IF(ISERROR('POULE DE 3 '!AH28),"",'POULE DE 3 '!AH28) -> 3
C23: ='A RENSEIGNER'!C29 -> N3 | E23: ='POULE DE 3 '!J37 -> 0 | K23: ='POULE DE 3 '!J28 -> 0 | M23: MP | P23: SERIE
C24: ='A RENSEIGNER'!D29 -> ABASM | D24: =+'POULE DE 3 '!I37 -> 3.583333333 | F24: =IF(ISBLANK('POULE DE 3 '!G37),"",'POULE DE 3 '!G37) -> 21 | J24: =+'POULE DE 3 '!I28 -> 5.035714286 | L24: =IF(ISBLANK('POULE DE 3 '!G28),"",'POULE DE 3 '!G28) -> 18 | M24: =IF('POULE DE 3 '!U28=0,"",'POULE DE 3 '!U28) ->  | O24: =IF('POULE DE 3 '!V28=0,"",'POULE DE 3 '!V28) -> 21
C25: JOUEUR categorie club | D25: =$D$21 -> JARRETY Didier | G25: =$G$21 -> SIMON Claude | J25: =$J$21 -> RIEGEL Serge | M25: PTS | N25: REP | P25: MG | Q25: PTS DE MATCHS | R25: RANG | S25: POINTS DE CLASSEMENTS | T25: POINTS DE BONUS | U25: TOTAL POINTS
C26: =IF(ISBLANK('A RENSEIGNER'!B30),"",'A RENSEIGNER'!B30) -> RIEGEL Serge | D26: =IF(ISBLANK('POULE DE 3 '!E46),"",'POULE DE 3 '!E46) -> 61 | F26: =+'POULE DE 3 '!F46 -> 24 | G26: =IF(ISBLANK('POULE DE 3 '!E29),"",'POULE DE 3 '!E29) -> 200 | I26: =+'POULE DE 3 '!F29 -> 28 | M26: =IF('POULE DE 3 '!R29=0,"",'POULE DE 3 '!R29) -> 261 | N26: =IF(ISERROR('POULE DE 3 '!S29),"",'POULE DE 3 '!S29) -> 52 | P26: =IF(ISERROR('POULE DE 3 '!T29),"",'POULE DE 3 '!T29) -> 5.019230769 | Q26: =IF(ISERROR('POULE DE 3 '!W29),"",'POULE DE 3 '!W29) -> 2 | R26: =IF(ISERROR('POULE DE 3 '!Y29),"",IF(ISBLANK('A RENSEIGNER'!B30),"",IF('POULE DE 3 '!Y29=1,'POULE DE 3 '!Y29&"er",'POULE DE 3 '!Y29&"ème"))) -> 2ème | S26: =IF(ISERROR('POULE DE 3 '!Z29),"",'POULE DE 3 '!Z29) -> 5 | T26: =+'POULE DE 3 '!AG29 -> 1 | U26: =IF(ISERROR('POULE DE 3 '!AH29),"",'POULE DE 3 '!AH29) -> 6
C27: ='A RENSEIGNER'!C30 -> N3 | E27: ='POULE DE 3 '!J46 -> 0 | H27: ='POULE DE 3 '!J29 -> 2 | M27: MP | O27: SERIE
C28: ='A RENSEIGNER'!D30 -> ABASM | D28: =+'POULE DE 3 '!I46 -> 2.541666667 | F28: =IF(ISBLANK('POULE DE 3 '!G46),"",'POULE DE 3 '!G46) -> 14 | G28: =+'POULE DE 3 '!I29 -> 7.142857143 | I28: =IF(ISBLANK('POULE DE 3 '!G29),"",'POULE DE 3 '!G29) -> 30 | M28: =IF('POULE DE 3 '!U29=0,"",'POULE DE 3 '!U29) -> 7.142857143 | O28: =IF('POULE DE 3 '!V29=0,"",'POULE DE 3 '!V29) -> 30

Sheet POULE DE 2
C2: CDBVM SAISON 2020- 2021 | S2: CDBHS SAISON 2015- 2016 | AA2: CDBHS SAISON 2015- 2016
C5: ='POULE DE 3 '!C4 -> DATE DE LA COMPETITION | D5: ='POULE DE 3 '!D4 -> 2022-03-13
C6: ='POULE DE 3 '!C5 -> LIEU | D6: ='POULE DE 3 '!D5 -> ABMA
C7: ='POULE DE 3 '!C6 -> DIRECTEUR DE JEU | D7: ='POULE DE 3 '!D6 ->  | F7: FEUILLE DE MATCH POULE DE 2 JOUEURS
C8: ='A RENSEIGNER'!B14 -> TOURNOI N° | D8: ='POULE DE 3 '!D7 -> FINALE
C9: ='POULE DE 3 '!C8 -> POULE N° | D9: ='POULE DE 3 '!D8 -> 1
C10: ='POULE DE 3 '!C9 -> MODE DE JEU | D10: ='POULE DE 3 '!D9 -> LIBRE
C13: JOUEURS | D13: CATEGORIE
C15: =IF(ISBLANK('A RENSEIGNER'!B41),"",'A RENSEIGNER'!B41) ->  | D15: ='A RENSEIGNER'!C41 ->  | E15: =VLOOKUP(D15,P35:Q39,2,0) -> 
C16: =IF(ISBLANK('A RENSEIGNER'!B42),"",'A RENSEIGNER'!B42) ->  | D16: ='A RENSEIGNER'!C42 ->  | E16: =VLOOKUP(D16,P36:Q40,2,0) -> 
C20: =IF(ISBLANK('A RENSEIGNER'!C16),"",IF('A RENSEIGNER'!C16="3 BANDES","LA DISTANCE DE LA POULE EST DE"&" "&IF(AND(D15=D16),VLOOKUP(D15,P35:Q39,2,0),MAX(E15:E16))&" "&"POINTS EN 60 REPRISES","LA DISTANCE DE LA POULE EST DE"&" "&IF(AND(D15=D16),VLOOKUP(D15,P35:Q39,2,0),MAX(E15:E16))&" "&"POINTS EN 30 REPRISES")) -> 
C22: SAISIE DES MATCHS
C25: MATCH 1 | P25: RESULTATS
C27: NOM | D27: CATEGORIE | E27: POINTS | F27: REPRISES | G27: SERIE | I27: MOY PART | J27: POINTS MATCH | K27: GAIN CATEG | L27: GAIN MATCH | M27: moy part validée | P27: NOM | Q27: CATEGORIE | R27: TOTAL POINTS | S27: TOTAL REPRISES | T27: MOYENNE GENERALE | U27: MOYENNE PARTICULIERE | V27: MEILLEURE SERIE | W27: POINTS DE MATCHS | X27: calcul du rang | Y27: RANG | Z27: POINTS CLASSEMENT | AA27: BONUS moyenne match 1 | AB27: BONUS moyenne match 2 | AC27: Bonus catégorie Match 1 | AD27: Bonus catégorie Match 2 | AE27: Bonus gain match 1 | AF27: Bonus gain match 2 | AG27: TOTAL POINTS BONUS | AH27: TOTAL GENERAL
B28: =VLOOKUP(D28,CATE_COR,2,0) ->  | C28: =IF(ISBLANK('A RENSEIGNER'!B41),"",'A RENSEIGNER'!B41) ->  | D28: =IF(ISBLANK('A RENSEIGNER'!C41),"",'A RENSEIGNER'!C41) ->  | H28: =IF(G28<I28,1,0) -> 0 | I28: =IF(ISBLANK(E28),"",E28/F28) ->  | J28: =IF(E28="","",IF(E28>E29,2,IF(E28=E29,1,IF(E28<E29,0)))) ->  | K28: =IF(B28<B29,1,0) ->  | L28: =IF(K28=0,0,IF(J28=2,3,IF(J28=1,2,IF(J28=0,1)))) ->  | M28: =IF(J28=0,0,I28) ->  | P28: =IF(ISBLANK('A RENSEIGNER'!B41),"",'A RENSEIGNER'!B41) ->  | Q28: ='A RENSEIGNER'!C41 ->  | R28: =IF(ISBLANK('A RENSEIGNER'!B42),"",E28+E36) ->  | S28: =IF(ISBLANK('A RENSEIGNER'!B41),"",F28+F36) ->  | T28: =IF(ISBLANK('A RENSEIGNER'!B41),"",R28/S28) ->  | U28: =IF(ISBLANK('A RENSEIGNER'!B41),"",MAX(M28,M36)) ->  | V28: =IF(ISBLANK('A RENSEIGNER'!B41),"",MAX(G28,G36)) ->  | W28: =IF(ISBLANK('A RENSEIGNER'!B41),"",J28+J36) ->  | X28: =IF(ISBLANK('A RENSEIGNER'!B41),"",W28*1000000000+T28*1000000+U28*10000+V28) ->  | Y28: =IF(ISBLANK('A RENSEIGNER'!B41),"",RANK(X28,$X$28:$X$30,0)) ->  | Z28: =IF(ISBLANK('A RENSEIGNER'!B41),"",IF(Y28=1,8,IF(Y28=2,5,IF(Y28=3,3)))) ->  | AA28: =IF(J28=0,0,IF(ISBLANK('A RENSEIGNER'!B41),"",IF(I28>VLOOKUP(D28,$T$35:$V$39,3,0),2,IF(I28<VLOOKUP(D28,$T$35:$V$39,2,0),0,1)))) ->  | AB28: =IF(J36=0,0,IF(ISBLANK('A RENSEIGNER'!B41),"",IF(I36>VLOOKUP(D36,$T$35:$V$39,3,0),2,IF(I36<VLOOKUP(D36,$T$35:$V$39,2,0),0,1)))) ->  | AC28: =IF(ISBLANK('A RENSEIGNER'!B41),"",K36) ->  | AD28: =IF(ISBLANK('A RENSEIGNER'!B41),"",K46) ->  | AE28: =IF(ISBLANK('A RENSEIGNER'!B41),"",L36) ->  | AF28: =IF(ISBLANK('A RENSEIGNER'!B41),"",L46) ->  | AG28: =IF(ISBLANK('A RENSEIGNER'!B41),"",SUM(AA28:AF28)) ->  | AH28: =IF(ISBLANK('A RENSEIGNER'!B41),"",SUM(Z28,AG28)) -> 
B29: =VLOOKUP(D29,CATE_COR,2,0) ->  | C29: =IF(ISBLANK('A RENSEIGNER'!B42),"",'A RENSEIGNER'!B42) ->  | D29: =IF(ISBLANK('A RENSEIGNER'!C42),"",'A RENSEIGNER'!C42) ->  | F29: =IF(ISBLANK(F28),"",F28) ->  | H29: =IF(G29<I29,1,0) -> 0 | I29: =IF(ISBLANK(E29),"",E29/F29) ->  | J29: =IF(E29="","",IF(E29>E28,2,IF(E29=E28,1,IF(E29<E28+N21,0)))) ->  | K29: =IF(B29<B28,1,0) ->  | L29: =IF(K29=0,0,IF(J29=2,3,IF(J29=1,2,IF(J29=0,1)))) ->  | M29: =IF(J29=0,0,I29) ->  | P29: =IF(ISBLANK('A RENSEIGNER'!B42),"",'A RENSEIGNER'!B42) ->  | Q29: ='A RENSEIGNER'!C42 ->  | R29: =IF(ISBLANK('A RENSEIGNER'!B42),"",E29+E37) ->  | S29: =IF(ISBLANK('A RENSEIGNER'!B42),"",F29+F37) ->  | T29: =IF(ISBLANK('A RENSEIGNER'!B42),"",R29/S29) ->  | U29: =IF(ISBLANK('A RENSEIGNER'!B42),"",MAX(M29,M37)) ->  | V29: =IF(ISBLANK('A RENSEIGNER'!B42),"",MAX(G29,G37)) ->  | W29: =IF(ISBLANK('A RENSEIGNER'!B42),"",J29+J37) ->  | X29: =IF(ISBLANK('A RENSEIGNER'!B42),"",W29*1000000000+T29*1000000+U29*10000+V29) ->  | Y29: =IF(ISBLANK('A RENSEIGNER'!B42),"",RANK(X29,$X$28:$X$30,0)) ->  | Z29: =IF(ISBLANK('A RENSEIGNER'!B42),"",IF(Y29=1,8,IF(Y29=2,5,IF(Y29=3,3)))) ->  | AA29: =IF(J29=0,0,IF(ISBLANK('A RENSEIGNER'!B42),"",IF(I29>VLOOKUP(D29,$T$35:$V$39,3,0),2,IF(I29<VLOOKUP(D29,$T$35:$V$39,2,0),0,1)))) ->  | AB29: =IF(J37=0,0,IF(ISBLANK('A RENSEIGNER'!B42),"",IF(I37>VLOOKUP(D37,$T$35:$V$39,3,0),2,IF(I37<VLOOKUP(D37,$T$35:$V$39,2,0),0,1)))) ->  | AC29: =IF(ISBLANK('A RENSEIGNER'!B42),"",K37) ->  | AD29: =IF(ISBLANK('A RENSEIGNER'!B42),"",K37) ->  | AE29: =IF(ISBLANK('A RENSEIGNER'!B42),"",L28) ->  | AF29: =IF(ISBLANK('A RENSEIGNER'!B42),"",L37) ->  | AG29: =IF(ISBLANK('A RENSEIGNER'!B42),"",SUM(AA29:AF29)) ->  | AH29: =IF(ISBLANK('A RENSEIGNER'!B42),"",SUM(Z29,AG29)) -> 
C33: MATCH 2
P34: TABLEAU DES DISTANCES | T34: MOYENNE DES CATEGORIES
C35: NOM | D35: CATEGORIE | E35: POINTS | F35: REPRISES | G35: SERIE | I35: MOY PART | J35: POINTS MATCH | K35: GAIN CATEG | L35: GAIN MATCH | M35: moy part validée | P35: R4 | Q35: =VLOOKUP('A RENSEIGNER'!$C$16&P35,tabdistance,4,0) -> 50 | R35: =VLOOKUP('A RENSEIGNER'!$C$16&P35,tabdistance,5,0) -> PC | T35: R4 | U35: =VLOOKUP('A RENSEIGNER'!$C$16&T35,tablemoy,4,0) -> 0 | V35: =VLOOKUP('A RENSEIGNER'!$C$16&T35,tablemoy,5,0) -> 1.1999999
B36: =VLOOKUP(D36,CATE_COR,2,0) ->  | C36: =IF(ISBLANK('A RENSEIGNER'!B41),"",'A RENSEIGNER'!B41) ->  | D36: =IF(ISBLANK('A RENSEIGNER'!C41),"",'A RENSEIGNER'!C41) ->  | H36: =IF(G36<I36,1,0) -> 0 | I36: =IF(ISBLANK(E36),"",E36/F36) ->  | J36: =IF(E36="","",IF(E36>E37,2,IF(E36=E37,1,IF(E36<E37,0)))) ->  | K36: =IF(B36<B37,1,0) ->  | L36: =IF(K36=0,0,IF(J36=2,3,IF(J36=1,2,IF(J36=0,1)))) ->  | M36: =IF(J36=0,0,I36) ->  | P36: R3 | Q36: =VLOOKUP('A RENSEIGNER'!$C$16&P36,tabdistance,4,0) -> 70 | R36: =VLOOKUP('A RENSEIGNER'!$C$16&P36,tabdistance,5,0) -> PC | T36: R3 | U36: =VLOOKUP('A RENSEIGNER'!$C$16&T36,tablemoy,4,0) -> 1.2 | V36: =VLOOKUP('A RENSEIGNER'!$C$16&T36,tablemoy,5,0) -> 2.299999
B37: =VLOOKUP(D37,CATE_COR,2,0) ->  | C37: =IF(ISBLANK('A RENSEIGNER'!B42),"",'A RENSEIGNER'!B42) ->  | D37: =IF(ISBLANK('A RENSEIGNER'!C42),"",'A RENSEIGNER'!C42) ->  | F37: =IF(ISBLANK(F36),"",F36) ->  | H37: =IF(G37<I37,1,0) -> 0 | I37: =IF(ISBLANK(E37),"",E37/F37) ->  | J37: =IF(E37="","",IF(E37>E36,2,IF(E37=E36,1,IF(E37<E36+N29,0)))) ->  | K37: =IF(B37<B36,1,0) ->  | L37: =IF(K37=0,0,IF(J37=2,3,IF(J37=1,2,IF(J37=0,1)))) ->  | M37: =IF(J37=0,0,I37) ->  | P37: R2 | Q37: =VLOOKUP('A RENSEIGNER'!$C$16&P37,tabdistance,4,0) -> 100 | R37: =VLOOKUP('A RENSEIGNER'!$C$16&P37,tabdistance,5,0) -> PC | T37: R2 | U37: =VLOOKUP('A RENSEIGNER'!$C$16&T37,tablemoy,4,0) -> 2.3 | V37: =VLOOKUP('A RENSEIGNER'!$C$16&T37,tablemoy,5,0) -> 3.9999999
P38: R1 | Q38: =VLOOKUP('A RENSEIGNER'!$C$16&P38,tabdistance,4,0) -> 150 | R38: =VLOOKUP('A RENSEIGNER'!$C$16&P38,tabdistance,5,0) -> PC | T38: R1 | U38: =VLOOKUP('A RENSEIGNER'!$C$16&T38,tablemoy,4,0) -> 4 | V38: =VLOOKUP('A RENSEIGNER'!$C$16&T38,tablemoy,5,0) -> 5.9999999
P39: N3 | Q39: =VLOOKUP('A RENSEIGNER'!$C$16&P39,tabdistance,4,0) -> 200 | R39: =VLOOKUP('A RENSEIGNER'!$C$16&P39,tabdistance,5,0) -> GC | T39: N3 | U39: =VLOOKUP('A RENSEIGNER'!$C$16&T39,tablemoy,4,0) -> 6 | V39: =VLOOKUP('A RENSEIGNER'!$C$16&T39,tablemoy,5,0) -> 12.4999999
AC226: N3 | AD226: 5
AC227: R1 | AD227: 4
AC228: R2 | AD228: 3
AC229: R3 | AD229: 2
AC230: R4 | AD230: 1

Sheet RESULTATS POULE DE 2
C3: ='A RENSEIGNER'!$C$11 -> 2022-03-13
C5: ='A RENSEIGNER'!$C$12 -> ABMA
C7: ="MODE DE JEU"&" "&'A RENSEIGNER'!$C$16 -> MODE DE JEU LIBRE
C9: ="CATEGORIE"&" "&'A RENSEIGNER'!$C$17 -> CATEGORIE N3
C11: ="TOURNOI N°"&" "&'A RENSEIGNER'!$C$14 -> TOURNOI N° FINALE
C13: ="POULE n°"&" "&'A RENSEIGNER'!$C$15 -> POULE n° 1
C15: RESULTATS DE LA POULE
C17: JOUEUR categorie club | D17: =C18 ->  | G17: =C22&" "&"match 1" -> match 1 | J17: =C22&" "&"match 2" -> match 2 | M17: PTS | N17: REP | P17: MG | Q17: PTS DE MATCHS | R17: RANG | S17: POINTS DE CLASSEMENT | T17: POINTS DE BONUS | U17: TOTAL POINTS
C18: =IF(ISBLANK('A RENSEIGNER'!B41),"",('A RENSEIGNER'!B41)) ->  | G18: =IF(ISBLANK('POULE DE 2'!E28),"",'POULE DE 2'!E28) ->  | I18: =IF(ISBLANK('POULE DE 2'!F28),"",'POULE DE 2'!F28) ->  | J18: =IF(ISBLANK('POULE DE 2'!E36),"",'POULE DE 2'!E36) ->  | L18: =IF(ISBLANK('POULE DE 2'!E36),"",'POULE DE 2'!F36) ->  | M18: =IF('POULE DE 2'!R28=0,"",'POULE DE 2'!R28) ->  | N18: =IF('POULE DE 2'!S28=0,"",'POULE DE 2'!S28) ->  | P18: =IF(ISERROR('POULE DE 2'!T28),"",'POULE DE 2'!T28) ->  | Q18: =IF(ISERROR('POULE DE 3 '!W28),"",'POULE DE 2'!W28) ->  | R18: =IF(ISERROR('POULE DE 3 '!Y28),"",IF(ISBLANK('A RENSEIGNER'!B41),"",IF('POULE DE 2'!Y28=1,'POULE DE 2'!Y28&"er",'POULE DE 2'!Y28&"ème"))) ->  | S18: =IF(ISERROR('POULE DE 3 '!Z28),"",'POULE DE 2'!Z28) ->  | T18: =IF(ISBLANK(C18),"",'POULE DE 2'!AG28) ->  | U18: =IF(ISERROR('POULE DE 2'!AH28),"",'POULE DE 2'!AH28) -> 
C19: ='A RENSEIGNER'!C41 ->  | H19: ='POULE DE 2'!J28 ->  | K19: ='POULE DE 2'!J36 ->  | M19: MP | O19: SERIE
C20: ='A RENSEIGNER'!D41 ->  | G20: ='POULE DE 2'!I28 ->  | I20: =IF(ISBLANK('POULE DE 2'!G28),"",'POULE DE 2'!G28) ->  | J20: ='POULE DE 2'!I36 ->  | L20: =IF(ISBLANK('POULE DE 2'!E36),"",'POULE DE 2'!G36) ->  | M20: =IF('POULE DE 2'!U28=0,"",'POULE DE 2'!U28) ->  | O20: =IF('POULE DE 2'!V28=0,"",'POULE DE 2'!V28) -> 
C21: JOUEUR categorie club | D21: =C18&" "&"match 1" -> match 1 | G21: =C22 ->  | J21: =C18&" "&"match 2" -> match 2 | M21: PTS | N21: REP | P21: MG | Q21: PTS DE MATCHS | R21: RANG | S21: POINTS DE CLASSEMENTS | T21: POINTS DE BONUS | U21: TOTAL POINTS
C22: =IF(ISBLANK('A RENSEIGNER'!B42),"",'A RENSEIGNER'!B42) ->  | D22: =IF(ISBLANK('POULE DE 2'!E29),"",'POULE DE 2'!E29) ->  | F22: ='POULE DE 2'!F29 ->  | J22: =IF(ISBLANK('POULE DE 2'!E37),"",'POULE DE 2'!E37) ->  | L22: ='POULE DE 2'!F37 ->  | M22: =IF('POULE DE 2'!R29=0,"",'POULE DE 2'!R29) ->  | N22: =IF(ISERROR('POULE DE 2'!S29=0),"",'POULE DE 2'!S29) ->  | P22: =IF(ISERROR('POULE DE 2'!T29),"",'POULE DE 2'!T29) ->  | Q22: =IF(ISERROR('POULE DE 3 '!W29),"",'POULE DE 2'!W29) ->  | R22: =IF(ISERROR('POULE DE 3 '!Y29),"",IF(ISBLANK('A RENSEIGNER'!B42),"",IF('POULE DE 2'!Y29=1,'POULE DE 2'!Y29&"er",'POULE DE 2'!Y29&"ème"))) ->  | S22: =IF(ISERROR('POULE DE 3 '!Z29),"",'POULE DE 2'!Z29) ->  | T22: =IF(ISBLANK(C22),"",'POULE DE 2'!AG29) ->  | U22: =IF(ISERROR('POULE DE 2'!AH29),"",'POULE DE 2'!AH29) -> 
C23: ='A RENSEIGNER'!C42 ->  | E23: ='POULE DE 2'!J29 ->  | K23: ='POULE DE 2'!J37 ->  | M23: MP | P23: SERIE
C24: ='A RENSEIGNER'!D42 ->  | D24: ='POULE DE 2'!I29 ->  | F24: =IF(ISBLANK('POULE DE 2'!G29),"",'POULE DE 2'!G29) ->  | J24: ='POULE DE 2'!I37 ->  | L24: =IF(ISBLANK('POULE DE 2'!G37),"",'POULE DE 2'!G37) ->  | M24: =IF('POULE DE 2'!U29=0,"",'POULE DE 2'!U29) ->  | O24: =IF('POULE DE 2'!V29=0,"",'POULE DE 2'!V29) -> 

Sheet categories (hidden)
A1: version excel | C1: 2016_CDBHS_FM_v9
A2: non trouvé | C2: -
A4: distance | B4: jeux | C4: TABLEAU DES DISTANCES LIBRE | D4: pt | E4: f | G4: moyenne | H4: jeux | I4: MOYENNE DES CATEGORIES LIBRE | J4: mini | K4: maxi
A5: =B5&C5 -> 3 BANDESN3 | B5: 3 BANDES | C5: N3 | D5: 25 | E5: 60 REP | G5: =H5&I5 -> 3 BANDESN3 | H5: 3 BANDES | I5: N3 | J5: 0.36 | K5: 0.5229999
A6: =B6&C6 -> 3 BANDESR1 | B6: 3 BANDES | C6: R1 | D6: 20 | E6: 60 REP | G6: =H6&I6 -> 3 BANDESR1 | H6: 3 BANDES | I6: R1 | J6: 0.25 | K6: 0.3599999
A7: 3 BANDESR2 | B7: 3 BANDES | C7: R2 | D7: 15 | E7: 60 REP | G7: 3 BANDESR2 | H7: 3 BANDES | I7: R2 | J7: 0 | K7: 0.249999
A8: 3 BANDESR3 | B8: 3 BANDES | C8: R3 | D8: - | E8: - | G8: 3 BANDESR3 | H8: 3 BANDES | I8: R3 | J8: - | K8: -
A9: 3 BANDESR4 | B9: 3 BANDES | C9: R4 | D9: - | E9: - | G9: 3 BANDESR4 | H9: 3 BANDES | I9: R4 | J9: - | K9: -
A10: BANDEN3 | B10: BANDE | C10: N3 | D10: 80 | G10: BANDEN3 | H10: BANDE | I10: N3 | J10: 1.75 | K10: 2.5799999
A11: BANDER1 | B11: BANDE | C11: R1 | D11: 60 | G11: BANDER1 | H11: BANDE | I11: R1 | J11: 1 | K11: 1.7499999
A12: BANDER2 | B12: BANDE | C12: R2 | D12: 40 | G12: BANDER2 | H12: BANDE | I12: R2 | J12: 0 | K12: 0.9999999
A13: BANDER3 | B13: BANDE | C13: R3 | D13: - | E13: - | G13: BANDER3 | H13: BANDE | I13: R3 | J13: - | K13: -
A14: BANDER4 | B14: BANDE | C14: R4 | D14: - | E14: - | G14: BANDER4 | H14: BANDE | I14: R4 | J14: - | K14: -
A15: CADREN3 | B15: CADRE | C15: N3 | D15: 120 | E15: 42/2 | G15: CADREN3 | H15: CADRE | I15: N3 | J15: 3.5 | K15: 6.2499999
A16: CADRER1 | B16: CADRE | C16: R1 | D16: 80 | E16: 42/2 | G16: CADRER1 | H16: CADRE | I16: R1 | J16: 0 | K16: 3.499999999
A17: CADRER2 | B17: CADRE | C17: R2 | D17: - | E17: - | G17: CADRER2 | H17: CADRE | I17: R2 | J17: - | K17: -
A18: CADRER3 | B18: CADRE | C18: R3 | D18: - | E18: - | G18: CADRER3 | H18: CADRE | I18: R3 | J18: - | K18: -
A19: CADRER4 | B19: CADRE | C19: R4 | D19: - | E19: - | G19: CADRER4 | H19: CADRE | I19: R4 | J19: - | K19: -
A20: LIBREN3 | B20: LIBRE | C20: N3 | D20: 200 | E20: GC | G20: LIBREN3 | H20: LIBRE | I20: N3 | J20: 6 | K20: 12.4999999
A21: LIBRER1 | B21: LIBRE | C21: R1 | D21: 150 | E21: PC | G21: LIBRER1 | H21: LIBRE | I21: R1 | J21: 4 | K21: 5.9999999
A22: LIBRER2 | B22: LIBRE | C22: R2 | D22: 100 | E22: PC | G22: LIBRER2 | H22: LIBRE | I22: R2 | J22: 2.3 | K22: 3.9999999
A23: =B23&C23 -> LIBRER3 | B23: LIBRE | C23: R3 | D23: 70 | E23: PC | G23: =H23&I23 -> LIBRER3 | H23: LIBRE | I23: R3 | J23: 1.2 | K23: 2.299999
A24: =B24&C24 -> LIBRER4 | B24: LIBRE | C24: R4 | D24: 50 | E24: PC | G24: =H24&I24 -> LIBRER4 | H24: LIBRE | I24: R4 | J24: 0 | K24: 1.1999999

Sheet BD_JOUEURS_CLUB_CATEGORIES
D1: 1 | E1: 2 | F1: 3 | G1: 4
A2: NOM | B2: CLUB | C2: ID | D2: CATEGORIES
D3: libre | E3: bande | F3: 3 bandes | G3: cadre | H3: n-2
A4: ADMONT Jean-Pierre | B4: ABMA | C4: 1 | D4: R2 | E4: R1 | F4: N3 | H4: 1
A5: ARGIS Mickael | B5: ABMA | C5: 2 | D5: R1 | E5: N3 | G5: N3 | H5: 1
A6: BAURECHE Louis | B6: ABASM | C6: 3 | D6: R3 | E6: R1 | H6: 0
A7: BEAUCHER Alain | B7: LIVRY | C7: 4 | D7: R2 | E7: N3 | F7: N3 | G7: R1 | H7: 1
A8: BENDAYAN Jacky | B8: ABMA | C8: 5 | D8: R3 | F8: N3 | G8: R1 | H8: 1
A9: BOISSET Jean-Pierre | B9: ABASM | C9: 6 | D9: R3 | E9: R1 | F9: R1 | G9: R1 | H9: 1
A10: CHAMPY Philippe | B10: ABASM | C10: 7 | D10: R2 | E10: R1 | G10: R1 | H10: 1
A11: CHUNG Hoan Toan | B11: LIVRY | C11: 8 | D11: R3 | E11: R1 | F11: R1 | G11: R1 | H11: 0
A12: COKAL Recep | B12: ABASM | C12: 9 | F12: R1 | G12: R1 | H12: 0
A13: COURATIN Jean-Daniel | B13: ABMA | C13: 10 | D13: R3 | H13: 1
A14: CROLARD Ivan | B14: ABASM | C14: 11 | D14: R3 | H14: 0
A15: DAIRE Eric | B15: ABASM | C15: 12 | D15: R2 | E15: R1 | F15: R1 | G15: R1 | H15: 1
A16: DECLUNDER Magali | C16: 13 | F16: N3 | H16: 0
A17: DELALANDE Christian | B17: LIVRY | C17: 14 | D17: N3 | E17: N3 | F17: N3 | G17: N3 | H17: 1
A18: DELALANDE Guy | B18: ABMA | C18: 15 | E18: R2 | H18: 0
A19: DELAPLACE Emmanuel | B19: LIVRY | C19: 16 | D19: R2 | E19: R1 | F19: N3 | G19: R1 | H19: 1
A20: DI GIOIA Serge | B20: ABASM | C20: 17 | F20: R1 | H20: 1
A21: DIAZ Vincent | B21: ABMA | C21: 18 | D21: R4 | E21: R2 | H21: 0
A22: DJIAN Didier | B22: La Comete | C22: 19 | D22: R2 | E22: N3 | H22: 0
A23: DOUSSOT Pierre | B23: ABMA | C23: 20 | D23: R1 | E23: R1 | F23: N3 | G23: N3 | H23: 1
A24: DUMONT Christine | B24: LIVRY | C24: 21 | D24: R4 | H24: 0
A25: DUPRE Bernard | B25: La Comete | C25: 22 | F25: R1 | H25: 0
A26: DUVAL Gérard | B26: LIVRY | C26: 23 | D26: R3 | F26: R1 | H26: 0
A27: FAVERO Alain | B27: LIVRY | C27: 24 | D27: R1 | E27: N3 | G27: N3 | H27: 1
A28: FAVIEN Christian | B28: LIVRY | C28: 25 | F28: R1 | H28: 1
A29: FERNANDEZ ALVES Francisco | B29: ABMA | C29: 26 | D29: R2 | E29: R1 | F29: N3 | G29: R1 | H29: 1
A30: FERRARA Jean-Pierre | B30: ABMA | C30: 27 | F30: N3 | G30: N3 | H30: 1
A31: GAYRAUD Françoise | B31: L HAY LES ROSES | C31: 28 | D31: R3 | H31: 0
A32: GELLER Marc | B32: ABMA | C32: 29 | D32: N3 | H32: 0
A33: GERNEZ Jean Philippe | B33: ABMA | C33: 30 | D33: R3 | H33: 1
A34: GILLOT Olivier | B34: ABMA | C34: 31 | D34: N3 | E34: R1 | F34: R1 | G34: N3 | H34: 1
A35: GOUVEIA Victor | B35: LIVRY | C35: 32 | D35: R3 | E35: R1 | F35: N3 | H35: 1
A36: GUERIN Jacky | B36: ABASM | C36: 33 | D36: R3 | E36: R2 | H36: 1
A37: GUILLOTIN Gilles | B37: ABMA | C37: 34 | D37: R1 | E37: R1 | G37: R1 | H37: 0
A38: GUREWAN Suresh | B38: ABMA | C38: 35 | D38: N3 | E38: N3 | F38: N3 | G38: N3 | H38: 1
A39: HARY Mathieu | B39: ABMA | C39: 36 | D39: N3 | E39: N3 | F39: N3 | G39: N3 | H39: 0
A40: HELLAL Denis | B40: ABASM | C40: 37 | E40: R1 | F40: N3 | H40: 0
A41: HENRIQUET Marc | B41: ABASM | C41: 38 | D41: R3 | E41: R2 | F41: R1 | G41: R1 | H41: 1
A42: IVANOVIC Spomanko | B42: ABASM | C42: 39 | D42: R2 | E42: R1 | F42: R1 | G42: R1 | H42: 0
A43: JARRETY Didier | B43: LIVRY | C43: 40 | D43: N3 | E43: N3 | F43: N3 | G43: N3 | H43: 1
A44: JARRIER Christian | B44: ABASM | C44: 41 | E44: R1 | F44: N3 | G44: N3 | H44: 0
A45: KELLNER Pierre | B45: ABMA | C45: 42 | D45: R3 | H45: 1
A46: KEREBEL Eric | B46: ABASM | C46: 43 | D46: R2 | E46: R1 | F46: R1 | G46: R1 | H46: 1
A47: KERIZAC Franck | B47: ABMA | C47: 44 | D47: R3 | H47: 0
A48: L HERONDE Michel | B48: ABMA | C48: 45 | D48: R2 | E48: R1 | H48: 1
A49: LABOUREAU Véronique | B49: ABMA | C49: 46 | D49: R3 | E49: R2 | F49: R2 | G49: R1 | H49: 1
A50: LAPERTOT Michel | B50: LIVRY | C50: 47 | D50: R1 | E50: N3 | F50: N3 | G50: N3 | H50: 0
A51: LE CAM Fabrice | B51: ABMA | C51: 48 | D51: R3 | H51: 0
A52: LE CAM Fabrice | B52: La Comete | C52: 49 | D52: R3 | E52: R1 | F52: R1 | G52: R1 | H52: 1
A53: Le Huan CUA Tran | B53: ABMA | C53: 50 | D53: R3 | E53: R1 | F53: R1 | G53: R1 | H53: 0
A54: LECLERC Michel | B54: ABASM | C54: 51 | D54: R2 | E54: R1 | F54: N3 | G54: R1 | H54: 1
A55: LEFEBVRE Frédéric | B55: LIVRY | C55: 52 | D55: R2 | E55: R1 | F55: R1 | H55: 0
A56: LEMOINE David | B56: ABASM | C56: 53 | D56: R3 | E56: R1 | F56: R1 | G56: R1 | H56: 0
A57: LEMONIER Thierry | B57: ABMA | C57: 54 | D57: R3 | E57: R2 | H57: 1
A58: LOURDOU Gérard | B58: LIVRY | C58: 55 | D58: R2 | E58: R1 | F58: R1 | G58: R1 | H58: 1
A59: LUCAS Philippe | B59: ABASM | C59: 56 | D59: R3 | E59: R1 | F59: R1 | G59: R1 | H59: 1
A60: MA PHUOC Bich | B60: ABMA | C60: 57 | D60: R2 | E60: R1 | G60: R1 | H60: 1
A61: MALAHIEUDE Claude | B61: ABMA | C61: 58 | F61: R1 | G61: R1 | H61: 1
A62: MALASSIGNE Elfege | B62: ABASM | C62: 59 | D62: R4 | F62: R2 | H62: 1
A63: MANCY Pierre | B63: ABMA | C63: 60 | D63: R3 | E63: R2 | F63: R1 | H63: 0
A64: MARIGNIER Daniel | B64: ABMA | C64: 61 | D64: R3 | E64: R2 | H64: 0
A65: MENDEL Gilles | B65: ABMA | C65: 62 | D65: R1 | E65: R1 | F65: R1 | G65: R1 | H65: 1
A66: MOLET Claude | B66: ABASM | C66: 63 | D66: N3 | E66: N3 | F66: N2 | G66: N3 | H66: 1
A67: NGUYEN Antoine | B67: ABMA | C67: 64 | F67: N3 | G67: N3 | H67: 0
A68: PALLOT Dominique | B68: LIVRY | C68: 65 | F68: N3 | H68: 0
A69: PAURON Regis | B69: ABMA | C69: 66 | D69: R3 | E69: R1 | F69: R1 | G69: R1 | H69: 1
A70: PEYROLE Philippe | B70: LIVRY | C70: 67 | D70: R2 | E70: R1 | G70: N3 | H70: 1
A71: PIBOURDIN Eric | B71: ABMA | C71: 68 | D71: R2 | E71: R1 | F71: R1 | G71: R1 | H71: 1
A72: PIVONET Françis | B72: ABASM | C72: 69 | D72: R2 | E72: R1 | F72: R1 | G72: R1 | H72: 1
A73: PONCE Frédéric | B73: ABMA | C73: 70 | D73: R3 | E73: R1 | F73: R1 | G73: R1 | H73: 1
A74: RAOULT Pierre-Jean | B74: ABASM | C74: 71 | D74: R1 | E74: R1 | F74: R1 | G74: R1 | H74: 1
A75: RIEGEL Serge | B75: ABASM | C75: 72 | D75: N3 | E75: N3 | F75: N3 | G75: N3 | H75: 1
A76: RODRIGUEZ Julien | B76: ABMA | C76: 73 | D76: R1 | E76: R1 | F76: N3 | G76: R1 | H76: 1
A77: SAGET Xavier | B77: ABASM | C77: 74 | D77: R2 | E77: R1 | F77: N3 | G77: N3 | H77: 1
A78: SIMON Claude | B78: ABASM | C78: 75 | D78: N3 | E78: N3 | F78: N3 | G78: N3 | H78: 1
A79: SULEM Paul | B79: ABASM | C79: 76 | D79: R3 | E79: R1 | F79: R1 | H79: 1
A80: TENREIRO Aristide | B80: LIVRY | C80: 77 | E80: R1 | F80: N3 | H80: 1
A81: THIERRY Jean-Michel | B81: ABMA | C81: 78 | D81: N3 | E81: N3 | F81: N3 | G81: N3 | H81: 1
A82: VASSEUR Philippe | B82: ABMA | C82: 79 | D82: R3 | H82: 0
A83: WEILL Denis | B83: ABASM | C83: 80 | D83: R1 | E83: R1 | F83: R1 | G83: R1 | H83: 0
A84: Joueur 1 | C84: 81 | H84: 1
A85: joueur2 | C85: 82 | H85: 0
H86: =SUM(H4:H85) -> 51

Sheet resultats pour ranking
A1: ='A RENSEIGNER'!$C$11 -> 2022-03-13
A2: ='A RENSEIGNER'!$C$12 -> ABMA
A3: ="MODE DE JEU"&" "&'A RENSEIGNER'!$C$16 -> MODE DE JEU LIBRE
A4: ="CATEGORIE"&" "&'A RENSEIGNER'!$C$17 -> CATEGORIE N3
A5: ="TOURNOI N°"&" "&'A RENSEIGNER'!$C$14 -> TOURNOI N° FINALE
A6: ="POULE n°"&" "&'A RENSEIGNER'!$C$15 -> POULE n° 1
A9: RESULTATS DE LA POULE
A11: Poule de 3 joueurs
A12: NOM | B12: points de classement ranking | C12: total points | D12: total reprises | E12: Meilleure Particulière | F12: Meilleure série
A13: ='RESULTATS POULE DE 3'!$C$18 -> JARRETY Didier | B13: ='RESULTATS POULE DE 3'!$U$18 -> 9 | C13: ='RESULTATS POULE DE 3'!$M$18 -> 400 | D13: ='RESULTATS POULE DE 3'!$N$18 -> 60 | E13: ='RESULTATS POULE DE 3'!$M$20 -> 8.333333333 | F13: ='RESULTATS POULE DE 3'!$O$20 -> 32
A14: ='RESULTATS POULE DE 3'!$C$22 -> SIMON Claude | B14: ='RESULTATS POULE DE 3'!$U$22 -> 3 | C14: ='RESULTATS POULE DE 3'!$M$22 -> 270 | D14: ='RESULTATS POULE DE 3'!$N$22 -> 64 | E14: ='RESULTATS POULE DE 3'!$M$24 ->  | F14: ='RESULTATS POULE DE 3'!$O$24 -> 21
A15: ='RESULTATS POULE DE 3'!$C$26 -> RIEGEL Serge | B15: ='RESULTATS POULE DE 3'!$U$26 -> 6 | C15: ='RESULTATS POULE DE 3'!$M$26 -> 261 | D15: ='RESULTATS POULE DE 3'!$N$26 -> 52 | E15: ='RESULTATS POULE DE 3'!$M$28 -> 7.142857143 | F15: ='RESULTATS POULE DE 3'!$O$28 -> 30
H17: Copier les cellules et coller dans le ranking avec " valeur"
A19: Poule de 2 joueurs
A20: NOM | B20: points de classement ranking | C20: total points | D20: total reprises | E20: Meilleure Particulière | F20: Meilleure série
A21: ='RESULTATS POULE DE 2'!$C$18 ->  | B21: ='RESULTATS POULE DE 2'!$U$18 ->  | C21: ='RESULTATS POULE DE 2'!$M$18 ->  | D21: ='RESULTATS POULE DE 2'!$N$18 ->  | E21: ='RESULTATS POULE DE 2'!M20 ->  | F21: ='RESULTATS POULE DE 2'!$O$20 -> 
A22: ='RESULTATS POULE DE 2'!$C$22 ->  | B22: ='RESULTATS POULE DE 2'!$U$22 ->  | C22: ='RESULTATS POULE DE 2'!$M$22 ->  | D22: ='RESULTATS POULE DE 2'!$N$22 ->  | E22: ='RESULTATS POULE DE 2'!$M$24 ->  | F22: ='RESULTATS POULE DE 2'!$O$24 -> 
